bitfinex/quotes_SOLUSD_20251224
["timestamp","ask_amount","ask_price","bid_price","bid_amount"]
[1766538453405,0.68,124.17,124.13,3.27225163]
[1766538454391,0.69,124.16,124.11,33.87475726]
[1766538454711,0.69,124.16,124.11,18.00225163]
[1766538454712,0.69,124.15,124.11,18.00225163]
[1766538454910,20.13368768,124.17,124.11,15.38]
[1766538455119,34.85368768,124.17,124.1,2.62225163]
[1766538455294,2.62225163,124.15,124.1,3.28225163]
[1766538455484,2.62225163,124.16,124.11,3.28225163]
[1766538456003,34.85368768,124.17,124.11,3.28225163]
[1766538456206,2.62225163,124.16,124.11,3.28225163]
[1766538456518,10.67507817,124.18,124.13,3.28225163]
[1766538456695,30.5685875,124.19,124.15,3.28225163]
[1766538456696,10.43767296,124.19,124.15,3.28225163]
[1766538457008,10.80767296,124.19,124.16,3.28225163]
[1766538457209,8.05192929,124.2,124.16,3.28225163]
[1766538457511,8.42192929,124.2,124.16,3.28225163]
[1766538457712,1.04418092,124.21,124.16,3.28225163]
[1766538457898,13.05992459,124.2,124.13,0.7]
[1766538458115,13.05992459,124.2,124.15,2.62225163]
[1766538458493,13.05992459,124.2,124.15,3.32225163]
[1766538459115,18.48920275,124.2,124.15,3.32225163]
[1766538459326,18.48920275,124.2,124.16,3.32225163]
[1766538460403,18.48920275,124.2,124.16,0.7]
[1766538460404,21.11145438,124.2,124.16,0.7]
[1766538461234,18.48920275,124.2,124.16,3.32225163]
[1766538462292,18.48920275,124.2,124.17,0.7]
[1766538469115,21.11145438,124.2,124.15,2.62225163]
[1766538469314,38.61802722,124.2,124.15,3.32225163]
[1766538469523,41.24027885,124.2,124.16,0.7]
[1766538470239,38.61802722,124.2,124.16,0.7]
[1766538470538,38.61802722,124.2,124.16,3.32225163]
[1766538472032,18.48920275,124.2,124.16,2.62225163]
[1766538472221,18.48920275,124.2,124.17,0.7]
[1766538473624,8.05152979,124.2,124.17,0.7]
[1766538474437,70.82649586,124.23,124.18,3.32225163]
[1766538474438,8.04958544,124.23,124.18,3.32225163]
[1766538474605,30.79580068,124.23,124.19,0.7]
[1766538475608,28.17354905,124.23,124.19,0.7]
[1766538475828,30.79580068,124.23,124.19,0.7]
[1766538476012,8.04958544,124.23,124.2,0.7]
[1766538479830,8.04958544,124.23,124.21,0.7]
[1766538480031,25.37143063,124.24,124.21,0.7]
[1766538480342,25.37143063,124.24,124.21,3.32225163]
[1766538480343,14.7,124.24,124.21,3.32225163]
[1766538480506,18.4854664,124.26,124.23,0.7]
[1766538480711,21.10771803,124.26,124.23,0.7]
[1766538481101,18.4854664,124.26,124.23,0.7]
[1766538482215,18.4854664,124.26,124.23,2.62225163]
[1766538482421,18.4854664,124.26,124.23,3.32225163]
[1766538482822,18.4854664,124.26,124.23,0.7]
[1766538483837,21.10771803,124.26,124.23,0.7]
[1766538484032,2.62225163,124.24,124.17,20.13290571]
[1766538484237,2.62225163,124.23,124.19,0.7]
[1766538484443,8.04987242,124.23,124.19,0.7]
[1766538485837,8.04893754,124.24,124.19,0.7]
[1766538486015,1.67414768,124.23,124.19,0.7]
[1766538486541,1.67414768,124.22,124.18,0.7]
[1766538487127,14.7,124.23,124.18,0.7]
[1766538487372,1.67414768,124.22,124.18,0.7]
[1766538487719,14.7,124.23,124.18,0.7]
[1766538487941,9.72488159,124.22,124.18,0.7]
[1766538493348,9.72488159,124.22,124.18,1.67414768]
[1766538493349,8.05073391,124.22,124.18,1.67414768]
[1766538493637,9.72488159,124.22,124.19,0.67]
[1766538494044,9.72488159,124.22,124.17,0.67]
[1766538495148,9.72488159,124.22,124.17,1.67414768]
[1766538495345,9.72488159,124.22,124.18,0.67]
[1766538495653,29.85046523,124.22,124.18,0.67]
[1766538496936,1.67414768,124.21,124.17,0.67]
[1766538497126,1.67414768,124.21,124.14,0.67]
[1766538497127,1.67414768,124.18,124.14,0.67]
[1766538497441,8.05347507,124.17,124.14,0.67]
[1766538497825,8.05282654,124.18,124.14,1.67414768]
[1766538498025,8.05282654,124.18,124.15,0.67]
[1766538499862,10.43767296,124.19,124.16,0.67]
[1766538501035,9.7262902,124.2,124.16,0.67]
[1766538501348,8.05214252,124.2,124.16,0.67]
[1766538501846,9.7262902,124.2,124.16,0.67]
[1766538505628,8.05214252,124.2,124.17,0.67]
[1766538506047,24.42528249,124.21,124.17,0.67]
[1766538506244,14.7,124.23,124.18,1.67414768]
[1766538506422,20.12163964,124.25,124.2,0.67]
[1766538506423,1.67414768,124.24,124.2,0.67]
[1766538507239,9.72308522,124.24,124.2,0.67]
[1766538509240,9.72383414,124.23,124.2,0.67]
[1766538509542,1.67414768,124.21,124.18,0.67]
[1766538509738,1.67414768,124.21,124.17,0.67]
[1766538510935,9.72549044,124.21,124.17,0.67]
[1766538511455,8.05134276,124.21,124.17,0.67]
[1766538511630,9.72549044,124.21,124.17,0.67]
[1766538512533,29.84996477,124.22,124.17,0.67]
[1766538515155,1.67414768,124.2,124.15,8.74462433]
[1766538515335,1.67414768,124.2,124.16,0.69]
[1766538515533,1.67414768,124.21,124.16,0.69]
[1766538516751,52.35084428,124.22,124.16,0.69]
[1766538517055,1.67414768,124.21,124.16,0.69]
[1766538517656,1.67414768,124.2,124.14,9.72945862]
[1766538517845,1.67414768,124.18,124.14,0.72]
[1766538519554,10.43767296,124.19,124.14,0.72]
[1766538519759,1.67414768,124.18,124.14,0.72]
[1766538519961,8.05346309,124.18,124.14,0.72]
[1766538520168,9.72761077,124.18,124.14,0.72]
[1766538521658,1.67414768,124.17,124.14,0.72]
[1766538521871,1.67414768,124.16,124.11,0.72]
[1766538522566,1.67414768,124.15,124.11,0.72]
[1766538522960,14.7,124.17,124.09,2.39414768]
[1766538522961,12.11182064,124.14,124.09,2.39414768]
[1766538523167,1.67414768,124.13,124.09,0.72]
[1766538523675,8.0567193,124.12,124.09,0.72]
[1766538524680,8.05632907,124.13,124.09,0.72]
[1766538525380,9.73047675,124.13,124.09,0.72]
[1766538525580,29.87065237,124.13,124.09,0.72]
[1766538525886,12.11182064,124.1,124.06,0.72]
[1766538526064,1.67414768,124.09,124.04,2.39414768]
[1766538526267,1.67414768,124.09,124.05,0.92]
[1766538526466,1.67414768,124.08,124.05,0.92]
[1766538527063,1.67414768,124.08,124.05,0.2]
[1766538527292,1.67414768,124.07,124.05,0.2]
[1766538527461,12.11182064,124.09,124.06,0.72]
[1766538528484,20.17070142,124.09,124.05,0.92]
[1766538528671,18.49655374,124.09,124.05,0.92]
[1766538528981,20.17070142,124.09,124.05,0.92]
[1766538530386,9.73347061,124.08,124.05,0.92]
[1766538532572,8.0567193,124.12,124.07,0.72]
[1766538532880,1.67414768,124.11,124.07,0.72]
[1766538534487,9.73181918,124.11,124.07,0.72]
[1766538537882,9.73181918,124.11,124.08,0.72]
[1766538540899,9.73181918,124.11,124.05,8.98104206]
[1766538540900,1.67414768,124.1,124.05,8.98104206]
[1766538541213,1.67414768,124.1,124.06,0.72]
[1766538542278,1.67414768,124.08,124.05,0.2]
[1766538542481,1.67414768,124.06,124.03,0.92]
[1766538542688,29.64,124.09,124.03,0.92]
[1766538543002,29.64,124.09,123.99,0.2]
[1766538543003,2.38414768,124.04,123.99,0.2]
[1766538543181,0.71,124.01,123.99,0.2]
[1766538543382,2.38414768,124.01,123.99,0.2]
[1766538543887,14.72,124.04,123.99,0.2]
[1766538544204,1.67414768,124.03,123.99,0.2]
[1766538544885,9.73676753,124.03,123.99,0.2]
[1766538545204,1.67414768,124.01,123.99,0.2]
[1766538545376,2.38414768,124.01,123.99,0.2]
[1766538545782,1.67414768,124.0,123.99,1e-08]
[1766538545989,2.62566251,124.0,123.99,1e-08]
[1766538546286,0.71,123.99,123.95,0.72]
[1766538546484,3.33566251,123.99,123.95,0.72]
[1766538546778,2.62566251,123.98,123.95,0.72]
[1766538548309,8.06646769,123.97,123.95,0.72]
[1766538549401,3.32566251,123.96,123.92,14.92]
[1766538549595,3.32566251,123.96,123.92,0.2]
[1766538550198,0.7,123.96,123.92,2.82566251]
[1766538550594,26.11167078,123.98,123.93,2.62566251]
[1766538550791,26.11167078,123.98,123.92,8.26968989]
[1766538550993,26.11167078,123.98,123.93,2.62566251]
[1766538551196,14.72,123.98,123.94,2.62566251]
[1766538551513,10.69041469,124.0,123.96,0.67]
[1766538551919,11.39041469,124.0,123.96,0.67]
[1766538552215,8.76475218,124.0,123.96,0.67]
[1766538552435,11.39041469,124.0,123.96,0.67]
[1766538552620,8.76475218,124.0,123.96,0.67]
[1766538552795,11.39041469,124.0,123.96,0.67]
[1766538553314,11.39041469,124.0,123.96,3.29566251]
[1766538554214,8.76475218,124.0,123.95,8.06757656]
[1766538554407,8.76475218,124.0,123.96,2.62566251]
[1766538554716,8.76475218,124.0,123.97,0.67]
[1766538554921,8.06475218,124.0,123.97,0.67]
[1766538556418,8.06475218,124.0,123.97,3.29566251]
[1766538557028,23.48410844,124.01,123.98,0.67]
[1766538557738,23.48410844,124.01,123.97,3.29566251]
[1766538558232,22.78410844,124.01,123.98,0.67]
[1766538558532,8.06410844,124.01,123.98,0.67]
[1766538560529,8.76410844,124.01,123.98,0.67]
[1766538561524,8.06410844,124.01,123.98,0.67]
[1766538561724,8.0634576,124.02,123.99,0.67]
[1766538562101,22.78279987,124.03,124.0,0.67]
[1766538562932,26.10846238,124.03,124.0,0.67]
[1766538563120,0.7,124.02,123.99,0.67]
[1766538564511,26.10846238,124.03,123.99,0.67]
[1766538564718,22.78279987,124.03,124.0,3.29566251]
[1766538564911,22.78279987,124.03,124.01,0.67]
[1766538565112,33.21949572,124.05,124.02,0.67]
[1766538565307,22.78182276,124.05,124.02,0.67]
[1766538565819,22.78182276,124.05,124.02,3.29566251]
[1766538566136,8.06182276,124.05,124.02,0.67]
[1766538566317,0.7,124.03,123.99,0.67]
[1766538566513,8.06191551,124.04,124.0,3.29566251]
[1766538566710,8.06191551,124.04,124.01,2.62566251]
[1766538567032,8.76191551,124.04,124.01,3.29566251]
[1766538567404,8.06191551,124.04,124.01,3.29566251]
[1766538568137,8.06191551,124.04,124.01,0.67]
[1766538568509,8.06191551,124.04,124.01,3.29566251]
[1766538570220,8.06191551,124.04,124.01,0.67]
[1766538570438,8.76191551,124.04,124.01,0.67]
[1766538571134,11.38757802,124.04,124.01,0.67]
[1766538571334,8.76191551,124.04,124.01,0.67]
[1766538572322,8.06191551,124.04,124.01,0.67]
[1766538572523,8.06191551,124.04,124.02,0.67]
[1766538573233,8.76191551,124.04,124.0,3.29566251]
[1766538573838,8.76191551,124.04,124.0,0.67]
[1766538574022,8.76191551,124.04,124.0,3.29566251]
[1766538574735,8.76191551,124.04,124.0,2.62566251]
[1766538574957,8.76191551,124.04,124.01,0.69]
[1766538576742,22.78139575,124.05,124.02,0.69]
[1766538577238,0.68,124.05,124.01,3.30566251]
[1766538578219,8.741765,124.05,124.01,3.30566251]
[1766538578429,23.46081716,124.06,124.03,0.68]
[1766538589059,23.46081716,124.06,124.03,3.30566251]
[1766538590933,23.46081716,124.06,124.03,0.68]
[1766538597466,3.30566251,124.04,124.0,0.68]
[1766538597655,0.68,124.03,124.0,0.68]
[1766538598169,0.68,124.03,123.98,3.30566251]
[1766538598170,0.68,124.02,123.98,3.30566251]
[1766538598338,0.68,124.02,123.99,0.68]
[1766538598663,0.68,124.01,123.98,0.68]
[1766538598969,0.68,124.01,123.98,3.30566251]
[1766538599543,8.74388737,124.01,123.98,3.30566251]
[1766538600564,8.06327312,124.02,123.98,2.62566251]
[1766538600861,0.68,124.01,123.98,2.62566251]
[1766538601063,0.68,124.01,123.98,0.68]
[1766538601367,8.74327312,124.02,123.99,0.68]
[1766538602448,10.68893563,124.02,123.98,2.62566251]
[1766538602650,0.68,124.01,123.97,2.62566251]
[1766538602850,0.68,124.01,123.96,0.68]
[1766538602851,0.68,124.0,123.96,0.68]
[1766538603052,0.68,124.0,123.97,0.68]
[1766538604659,8.0625655,124.03,124.0,0.68]
[1766538604863,0.68,124.02,123.99,3.30566251]
[1766538605170,0.68,124.02,123.99,0.68]
[1766538605574,0.68,124.02,123.99,3.30566251]
[1766538605867,8.74341614,124.02,123.99,3.30566251]
[1766538606072,8.74341614,124.02,123.99,2.35949946]
[1766538606742,8.74341614,124.02,123.99,0.68]
[1766538610151,0.68,124.01,123.98,2.35949946]
[1766538610354,0.68,124.01,123.99,0.68]
[1766538610970,8.06341614,124.02,123.99,0.68]
[1766538611278,0.68,124.01,123.98,2.35949946]
[1766538611481,0.68,124.0,123.97,1.67949946]
[1766538611648,0.68,124.0,123.96,2.35949946]
[1766538611967,0.68,124.0,123.97,0.68]
[1766538612515,8.74482532,124.0,123.97,0.68]
[1766538616775,8.74407835,124.01,123.98,0.68]
[1766538617374,8.74407835,124.01,123.98,2.35949946]
[1766538618682,22.78338907,124.02,123.99,2.35949946]
[1766538618861,8.74338907,124.02,123.99,2.35949946]
[1766538619282,8.74338907,124.02,123.99,1.67949946]
[1766538619583,8.74338907,124.02,123.99,2.35949946]
[1766538619880,8.74338907,124.02,123.99,0.68]
[1766538620889,8.74338907,124.02,124.0,0.68]
[1766538621095,8.0625655,124.03,124.0,0.68]
[1766538621386,2.35949946,124.06,124.02,0.68]
[1766538621567,0.68,124.06,124.03,0.68]
[1766538622081,0.68,124.04,124.0,0.68]
[1766538622270,0.68,124.04,124.0,2.35949946]
[1766538623079,8.0625655,124.03,124.0,0.68]
[1766538623265,8.7425655,124.03,124.0,0.68]
[1766538623585,8.7425655,124.03,124.0,2.35949946]
[1766538623973,8.06155804,124.05,124.01,1.67949946]
[1766538624173,8.74155804,124.05,124.02,2.35949946]
[1766538624490,0.68,124.05,124.02,2.35949946]
[1766538624891,0.68,124.05,124.02,0.68]
[1766538625096,8.74149504,124.05,124.02,0.68]
[1766538626892,8.06149504,124.05,124.01,1.67949946]
[1766538627198,8.74204651,124.04,124.0,0.68]
[1766538627507,8.74204651,124.04,124.0,1.67949946]
[1766538627684,8.74204651,124.04,124.01,0.68]
[1766538632188,8.06204651,124.04,124.02,0.68]
[1766538632495,8.74128918,124.05,124.02,0.68]
[1766538632873,8.74128918,124.05,124.02,2.35949946]
[1766538633581,8.74128918,124.05,124.02,0.68]
[1766538636095,0.69,124.03,124.0,0.67]
[1766538638211,8.75274405,124.03,124.0,0.67]
[1766538638379,0.69,124.02,124.0,0.67]
[1766538638584,0.69,124.02,123.99,1.67949946]
[1766538638585,0.69,124.02,123.98,16.39949946]
[1766538638799,0.69,124.01,123.98,0.67]
[1766538639499,0.69,124.01,123.97,2.34949946]
[1766538639880,28.21915782,124.03,123.97,1.67949946]
[1766538640084,8.06362496,124.02,123.98,2.34949946]
[1766538640282,0.69,124.01,123.98,2.34949946]
[1766538641310,8.75387475,124.01,123.98,2.34949946]
[1766538642408,8.75387475,124.01,123.98,0.67]
[1766538646617,10.43337421,124.01,123.98,0.67]
[1766538646911,0.69,124.0,123.97,0.67]
[1766538647887,0.69,124.0,123.96,2.34949946]
[1766538648096,0.69,124.0,123.97,0.67]
[1766538649114,8.75477612,124.0,123.97,0.67]
[1766538655594,8.06477612,124.0,123.98,0.67]
[1766538658823,0.69,124.0,123.98,0.67]
[1766538661622,8.75478328,124.0,123.97,0.67]
[1766538662825,8.75478328,124.0,123.97,2.34949946]
[1766538663536,8.75478328,124.0,123.97,0.67]
[1766538663824,8.75478328,124.0,123.97,2.34949946]
[1766538667549,8.75478328,124.0,123.97,2.34949946]
[1766538667737,1.67949946,124.03,123.99,0.67]
[1766538668040,0.72,124.02,123.99,0.67]
[1766538668819,8.78354386,124.02,123.99,0.67]
[1766538669638,0.72,124.0,123.96,8.73688845]
[1766538669833,0.72,124.0,123.96,11.36137447]
[1766538670351,0.72,124.0,123.97,0.67]
[1766538671426,0.72,124.0,123.98,0.67]
[1766538671630,0.72,124.01,123.98,0.67]
[1766538676728,8.06354764,124.02,123.98,0.67]
[1766538676933,8.78354764,124.02,123.99,0.67]
[1766538677134,8.78268593,124.03,124.0,3.29448602]
[1766538677453,8.78268593,124.03,124.0,0.67]
[1766538679959,8.78268593,124.03,124.0,3.29448602]
[1766538683053,8.78268593,124.03,124.0,2.62448602]
[1766538683361,8.78268593,124.03,124.01,0.67]
[1766538684467,8.06268593,124.03,124.01,0.67]
[1766538685548,8.78268593,124.03,124.0,2.62448602]
[1766538685754,8.78268593,124.03,124.0,3.29448602]
[1766538689472,0.72,124.02,123.99,2.62448602]
[1766538689667,0.72,124.02,123.99,3.29448602]
[1766538690480,0.72,124.02,124.0,0.67]
[1766538691070,8.78268593,124.03,124.0,0.67]
[1766538691270,8.78268593,124.03,124.0,3.29448602]
[1766538691573,8.78268593,124.03,124.01,0.67]
[1766538706870,0.72,124.05,124.01,3.29448602]
[1766538707184,8.78093909,124.06,124.03,0.66]
[1766538708168,0.72,124.06,124.03,2.62448602]
[1766538708484,0.72,124.06,124.04,0.66]
[1766538711404,0.72,124.05,124.02,2.62448602]
[1766538711689,0.72,124.05,124.02,3.28448602]
[1766538712794,0.72,124.05,124.03,0.66]
[1766538715906,8.78142771,124.05,124.02,3.28448602]
[1766538717289,0.72,124.05,124.03,0.66]
[1766538718293,8.78131544,124.05,124.02,2.62448602]
[1766538718489,8.06131544,124.05,124.01,2.62448602]
[1766538718692,0.72,124.04,124.01,2.62448602]
[1766538718999,0.72,124.04,124.01,3.28448602]
[1766538719577,0.72,124.04,124.02,3.28448602]
[1766538721001,0.72,124.03,123.99,0.66]
[1766538721305,0.72,124.03,123.99,3.28448602]
[1766538722081,0.72,124.03,124.0,0.66]
[1766538722889,8.78205439,124.04,124.01,3.28448602]
[1766538727308,8.77061583,124.06,124.03,0.68]
[1766538729622,8.77061583,124.06,124.03,2.35849741]
[1766538729917,8.06061583,124.06,124.04,0.68]
[1766538730613,8.77061583,124.06,124.03,0.68]
[1766538731619,8.77061583,124.06,124.03,2.35849741]
[1766538733917,8.77061583,124.06,124.03,0.68]
[1766538734215,0.71,124.05,124.02,2.35849741]
[1766538734424,0.71,124.05,124.02,0.68]
[1766538738121,0.71,124.05,124.02,2.35849741]
[1766538739224,0.71,124.05,124.03,0.68]
[1766538740622,0.71,124.05,124.02,1.67849741]
[1766538740797,0.71,124.05,124.02,2.35849741]
[1766538742531,0.71,124.05,124.03,0.68]
[1766538746044,0.71,124.05,124.02,1.67849741]
[1766538746337,0.71,124.05,124.02,10.42164998]
[1766538747747,8.77128388,124.05,124.02,2.35849741]
[1766538747910,8.77128388,124.05,124.02,0.68]
[1766538748944,8.77128388,124.05,124.02,2.35849741]
[1766538750435,0.71,124.05,124.02,2.35849741]
[1766538750739,0.71,124.05,124.02,1.67849741]
[1766538750946,0.71,124.05,124.03,0.68]
[1766538751444,0.71,124.06,124.03,0.68]
[1766538753227,22.78018639,124.07,124.04,0.68]
[1766538753228,23.49018639,124.07,124.04,0.68]
[1766538755129,0.67,124.06,124.03,0.7]
[1766538757949,8.73065807,124.06,124.03,0.7]
[1766538758359,8.06065807,124.06,124.03,0.7]
[1766538758525,8.76065807,124.06,124.03,0.7]
[1766538758730,8.06065807,124.06,124.03,0.7]
[1766538759039,0.7,124.05,124.03,0.7]
[1766538761934,8.76140111,124.05,124.03,0.7]
[1766538762335,8.76140111,124.05,124.02,0.7]
[1766538763757,8.76140111,124.05,123.97,36.7308652]
[1766538763758,1.67849741,124.04,123.98,0.7]
[1766538763955,0.7,124.01,123.97,0.7]
[1766538764550,2.37849741,124.01,123.97,0.7]
[1766538764954,2.37849741,123.99,123.94,0.7]
[1766538765160,0.7,123.96,123.93,0.7]
[1766538765334,1.67849741,123.96,123.92,0.2]
[1766538765538,1.67849741,123.96,123.92,0.9]
[1766538765539,0.7,123.95,123.92,0.9]
[1766538766148,2.37849741,123.95,123.92,0.9]
[1766538766350,0.7,123.94,123.92,0.2]
[1766538767059,10.44662859,123.95,123.92,0.9]
[1766538768665,8.06813118,123.95,123.92,1e-08]
[1766538768871,8.06813118,123.95,123.89,0.7]
[1766538768872,0.7,123.93,123.89,0.7]
[1766538769037,8.76967662,123.93,123.89,0.7]
[1766538769242,8.76967662,123.93,123.89,1.67849741]
[1766538769452,8.76967662,123.93,123.89,2.37849741]
[1766538769660,8.76967662,123.93,123.89,1.67849741]
[1766538769966,8.76967662,123.93,123.9,0.7]
[1766538770183,11.99876801,123.94,123.9,0.7]
[1766538770458,0.7,123.93,123.9,2.37849741]
[1766538770669,0.7,123.93,123.9,0.7]
[1766538772073,9.74716085,123.94,123.9,0.7]
[1766538772371,10.44716085,123.94,123.9,0.7]
[1766538774076,8.76866344,123.94,123.9,0.7]
[1766538774273,10.44716085,123.94,123.9,0.7]
[1766538775083,8.76866344,123.94,123.9,0.7]
[1766538775252,8.76866344,123.94,123.91,0.7]
[1766538777754,0.7,123.93,123.9,0.7]
[1766538778658,0.7,123.93,123.9,2.37849741]
[1766538780677,0.7,123.93,123.89,24.22382817]
[1766538780678,8.06947389,123.93,123.89,24.22382817]
[1766538780853,0.7,123.92,123.89,0.7]
[1766538781172,0.7,123.92,123.88,0.7]
[1766538781173,0.7,123.91,123.88,0.7]
[1766538781479,10.4479713,123.93,123.89,0.7]
[1766538781686,0.7,123.92,123.89,0.7]
[1766538782056,8.76999036,123.92,123.89,0.7]
[1766538784379,8.76999036,123.92,123.89,2.37849741]
[1766538784677,8.06932448,123.93,123.9,1.67849741]
[1766538784873,8.7685981,123.94,123.91,0.7]
[1766538785260,8.0685981,123.94,123.92,0.7]
[1766538785770,8.06784727,123.95,123.93,0.7]
[1766538785966,8.76784727,123.95,123.92,2.37849741]
[1766538787996,8.76784727,123.95,123.92,3.32726596]
[1766538788668,8.76784727,123.95,123.93,0.69]
[1766538790482,8.76784727,123.95,123.92,3.31726596]
[1766538792385,8.76784727,123.95,123.92,0.69]
[1766538792696,8.06784727,123.95,123.93,0.69]
[1766538793178,8.72784727,123.95,123.93,0.69]
[1766538793985,8.72784727,123.95,123.92,0.69]
[1766538795990,11.35463693,123.96,123.92,0.69]
[1766538796175,0.66,123.95,123.92,3.31726596]
[1766538796488,0.66,123.95,123.92,0.69]
[1766538797274,8.7284202,123.94,123.92,0.69]
[1766538798773,8.7284202,123.94,123.91,0.69]
[1766538799159,8.7284202,123.94,123.91,3.31726596]
[1766538799563,8.7284202,123.94,123.92,0.69]
[1766538801989,0.66,123.93,123.9,22.08665706]
[1766538802189,0.66,123.91,123.88,0.69]
[1766538802393,0.66,123.91,123.87,0.2]
[1766538802394,0.66,123.91,123.87,3.51726596]
[1766538802566,0.66,123.9,123.87,3.51726596]
[1766538803790,8.73138135,123.9,123.87,3.51726596]
[1766538805692,0.66,123.87,123.85,0.2]
[1766538805894,0.66,123.86,123.85,0.2]
[1766538806278,30.87620986,123.9,123.85,0.89]
[1766538806279,3.28726596,123.89,123.85,0.89]
[1766538806478,3.89167036,123.88,123.85,0.89]
[1766538807473,8.73426095,123.86,123.82,3.51726596]
[1766538807674,0.66,123.85,123.82,0.2]
[1766538807873,11.09767296,123.85,123.82,0.2]
[1766538808397,0.66,123.85,123.82,0.2]
[1766538808602,8.73454788,123.85,123.82,0.2]
[1766538809498,2.62726596,123.84,123.82,0.2]
[1766538809796,3.28726596,123.84,123.82,0.2]
[1766538809973,0.66,123.84,123.82,0.2]
[1766538811902,2.62726596,123.84,123.82,0.89]
[1766538812104,0.66,123.82,123.8,0.2]
[1766538812298,3.28726596,123.81,123.8,0.2]
[1766538812487,3.28726596,123.81,123.79,0.2]
[1766538813403,11.36423052,123.81,123.79,1e-08]
[1766538813704,0.66,123.8,123.79,1e-08]
[1766538814901,8.73754442,123.8,123.79,1e-08]
[1766538815326,11.36481038,123.8,123.78,1e-08]
[1766538815613,0.68,123.79,123.78,1e-08]
[1766538816111,3.91376045,123.79,123.78,1e-08]
[1766538816312,0.68,123.79,123.78,1e-08]
[1766538817215,13.93857083,123.8,123.78,1e-08]
[1766538817399,10.70481038,123.8,123.78,1e-08]
[1766538817804,0.7,123.79,123.78,1e-08]
[1766538818005,3.32726596,123.79,123.78,1e-08]
[1766538819210,0.7,123.79,123.78,1e-08]
[1766538819716,14.63857083,123.8,123.78,1e-08]
[1766538822314,12.01130487,123.8,123.78,1e-08]
[1766538822510,2.62726596,123.81,123.78,0.68000001]
[1766538822729,17.36726596,123.83,123.79,0.68]
[1766538822910,21.30050364,123.83,123.79,0.68]
[1766538823213,26.14297817,123.83,123.79,0.68]
[1766538823713,26.14297817,123.83,123.79,8.07818588]
[1766538824014,25.44297817,123.83,123.8,0.68]
[1766538824586,26.14297817,123.83,123.8,0.68]
[1766538824892,18.06726596,123.83,123.8,0.68]
[1766538825302,32.31991567,123.85,123.8,8.07740432]
[1766538825617,8.7745526,123.85,123.81,0.68]
[1766538826697,0.7,123.85,123.81,0.68]
[1766538826908,25.44118813,123.86,123.82,0.68]
[1766538827099,26.14118813,123.86,123.82,8.75618425]
[1766538827800,26.14118813,123.86,123.82,0.68]
[1766538828802,23.51392217,123.86,123.82,0.68]
[1766538829005,26.14118813,123.86,123.82,0.68]
[1766538829604,3.32726596,123.85,123.82,0.68]
[1766538830827,2.62726596,123.85,123.8,8.07728031]
[1766538831130,0.7,123.82,123.79,0.68]
[1766538831303,2.62726596,123.83,123.79,0.68]
[1766538831502,10.70367698,123.82,123.79,0.68]
[1766538831723,26.14367698,123.82,123.79,0.68]
[1766538833124,23.51641102,123.82,123.79,0.68]
[1766538833297,26.14367698,123.82,123.79,0.68]
[1766538835523,25.44367698,123.82,123.78,0.68000001]
[1766538835702,2.62726596,123.81,123.78,0.68000001]
[1766538836427,26.14367698,123.82,123.78,0.68000001]
[1766538837605,2.62726596,123.81,123.78,0.68000001]
[1766538838912,18.06726596,123.82,123.78,0.68000001]
[1766538839108,23.51631747,123.82,123.78,1e-08]
[1766538839311,26.14358343,123.82,123.78,0.68000001]
[1766538840727,3.32726596,123.81,123.78,1e-08]
[1766538840899,3.32726596,123.8,123.78,1e-08]
[1766538842530,2.62726596,123.8,123.78,0.68000001]
[1766538842708,10.70495792,123.8,123.78,0.68000001]
[1766538843828,8.77769196,123.8,123.78,1e-08]
[1766538844037,2.62726596,123.79,123.77,0.2]